bitfinex/quotes_ETHUSD_20250721
["timestamp","ask_amount","ask_price","bid_price","bid_amount"]
[1753070134507,0.4385,3752.2,3752.1,0.551]
[1753070134823,0.4385,3752.2,3752.1,0.001]
[1753070135023,3.10360313,3752.2,3752.1,0.001]
[1753070136924,0.4385,3752.2,3752.1,0.001]
[1753070137486,3.10360313,3752.2,3752.1,0.001]
[1753070137946,3.13023233,3752.2,3752.1,0.001]
[1753070138093,3.90110313,3752.2,3752.1,0.001]
[1753070138295,3.92773233,3752.2,3752.1,0.001]
[1753070138533,3.90110313,3752.2,3752.1,0.001]
[1753070138830,3.92773233,3752.2,3752.1,0.001]
[1753070139038,3.90110313,3752.2,3752.1,0.001]
[1753070139193,7.96010313,3752.2,3752.1,0.001]
[1753070142620,3.90110313,3752.2,3752.1,0.001]
[1753070142926,7.96110313,3752.2,3752.1,0.001]
[1753070143925,7.95130313,3752.2,3752.1,0.001]
[1753070149108,7.95130313,3752.2,3752.1,1e-08]
[1753070149311,10.95130313,3752.2,3752.1,1e-08]
[1753070165730,2.66560042,3751.5,3751.4,1e-08]
[1753070165966,2.79847148,3751.4,3751.3,1e-08]
[1753070166170,3.22717148,3751.4,3751.3,1e-08]
[1753070166348,4.07210068,3751.4,3751.3,1e-08]
[1753070171693,2.79847148,3751.4,3751.3,1e-08]
[1753070171897,6.85847148,3751.4,3751.3,1e-08]
[1753070172375,7.32757148,3751.4,3751.3,1e-08]
[1753070176482,3.26757148,3751.4,3751.3,1e-08]
[1753070176684,7.35420068,3751.4,3751.3,1e-08]
[1753070176885,7.32757148,3751.4,3751.3,1e-08]
[1753070178281,2.79847148,3751.4,3751.3,1e-08]
[1753070178468,6.85847148,3751.4,3751.3,1e-08]
[1753070183003,2.79847148,3751.4,3751.3,1e-08]
[1753070183349,6.85847148,3751.4,3751.3,0.46390001]
[1753070184049,6.85847148,3751.4,3751.3,1e-08]
[1753070186896,7.32757148,3751.4,3751.3,1e-08]
[1753070189796,6.85847148,3751.4,3751.3,1e-08]
[1753070190921,2.79847148,3751.4,3751.3,1e-08]
[1753070191218,6.85747148,3751.4,3751.3,1e-08]
[1753070191608,6.85747148,3751.4,3751.3,0.46390001]
[1753070191797,6.85747148,3751.4,3751.3,1e-08]
[1753070196042,2.79847148,3751.4,3751.3,1e-08]
[1753070196187,6.85747148,3751.4,3751.3,1e-08]
[1753070196391,7.32657148,3751.4,3751.3,1e-08]
[1753070197928,7.32857148,3751.4,3751.3,1e-08]
[1753070203628,6.85947148,3751.4,3751.3,1e-08]
[1753070204129,2.80047148,3751.4,3751.3,1e-08]
[1753070204330,6.85847148,3751.4,3751.3,1e-08]
[1753070205645,0.1348,3751.4,3751.3,1e-08]
[1753070205867,4.1928,3751.4,3751.3,0.44070001]
[1753070206192,0.1348,3751.4,3751.3,1e-08]
[1753070206332,0.1348,3751.4,3751.3,3.88694255]
[1753070206525,0.002,3751.4,3751.3,5.46107317]
[1753070207121,0.002,3752.2,3752.1,3.21517416]
[1753070207445,0.002,3752.2,3752.1,3.99567416]
[1753070207752,0.002,3752.2,3752.1,4.43637416]
[1753070207948,0.002,3752.2,3752.1,5.15981764]
[1753070209164,0.002,3752.2,3752.1,0.72344348]
[1753070209331,0.1328,3752.1,3751.9,0.7727]
[1753070209653,0.0266292,3752.0,3751.6,0.8271]
[1753070209840,0.1328,3751.7,3751.6,0.8271]
[1753070213927,0.1328,3751.7,3751.6,1.2678]
[1753070216063,0.1328,3751.7,3751.6,1.32286627]
[1753070216221,0.002,3752.2,3751.7,2.66540963]
[1753070216422,0.1328,3752.0,3751.8,2.66538615]
[1753070216624,0.1328,3752.0,3751.9,0.4407]
[1753070217119,0.1328,3752.0,3751.6,1.32286627]
[1753070217466,0.1328,3752.0,3751.8,0.4407]
[1753070217858,0.1328,3752.0,3751.9,2.66531623]
[1753070218157,0.1328,3752.0,3751.9,3.44441623]
[1753070218321,0.1328,3752.0,3751.9,0.7791]
[1753070218521,0.1328,3752.0,3751.9,3.88511623]
[1753070218747,0.1328,3752.0,3751.9,5.4055144]
[1753070219133,0.1348,3752.0,3751.9,5.4055144]
[1753070221777,0.1348,3752.0,3751.9,2.74019817]
[1753070223082,0.1348,3752.0,3751.9,5.4055144]
[1753070223280,0.1348,3752.0,3751.9,2.74019817]
[1753070223456,0.1348,3752.0,3751.9,5.4055144]
[1753070223778,0.1348,3752.0,3751.9,2.74019817]
[1753070224278,0.1348,3752.0,3751.9,5.4055144]
[1753070225280,0.1348,3752.0,3751.9,2.74019817]
[1753070225666,0.1348,3752.0,3751.9,4.9648144]
[1753070225866,0.1348,3752.0,3751.9,2.74019817]
[1753070226592,0.002,3752.0,3751.9,5.43216756]
[1753070226760,0.002,3752.0,3751.9,9.4615144]
[1753070227785,0.002,3752.0,3751.9,10.1443144]
[1753070234618,0.002,3752.0,3751.9,13.1443144]
[1753070242802,0.002,3752.0,3751.9,8.6476144]
[1753070242959,0.002,3752.0,3751.9,2.79811623]
[1753070243294,0.002,3752.0,3751.9,10.40211623]
[1753070244298,0.002,3752.0,3751.9,14.52865353]
[1753070245377,0.002,3752.0,3751.9,14.09065353]
[1753070246585,0.002,3752.0,3751.9,10.40111623]
[1753070246916,0.002,3752.0,3751.9,3.34811623]
[1753070247118,0.002,3752.0,3751.9,7.40111623]
[1753070247480,0.002,3752.0,3751.9,0.6828]
[1753070247698,0.002,3752.0,3751.9,4.7358]
[1753070248321,0.002,3752.0,3751.9,7.40111623]
[1753070249209,0.002,3752.0,3751.9,9.19283946]
[1753070250035,0.002,3752.0,3751.9,9.63083946]
[1753070250802,0.002,3752.0,3751.9,9.19283946]
[1753070251622,0.002,3752.0,3751.9,9.63083946]
[1753070253021,0.002,3752.0,3751.9,9.19283946]
[1753070254994,0.002,3752.0,3751.9,9.63083946]
[1753070258429,0.002,3752.0,3751.9,9.19283946]
[1753070261745,0.002,3752.0,3751.9,12.19283946]
[1753070261945,0.002,3752.0,3751.9,13.40243946]
[1753070262328,0.002,3752.0,3751.9,18.16243946]
[1753070263167,0.002,3752.2,3752.1,7.02097416]
[1753070263316,0.002,3752.2,3752.1,17.14977282]
[1753070263517,0.002,3752.2,3752.1,17.74137282]
[1753070265243,0.002,3752.2,3752.1,22.50137282]
[1753070265764,0.002,3752.8,3752.7,7.04674804]
[1753070266053,0.002,3752.8,3752.7,20.51844332]
[1753070266252,0.002,3752.8,3752.7,20.65124332]
[1753070266431,0.002,3752.8,3752.7,21.11004332]
[1753070268759,0.002,3752.8,3752.7,20.65124332]
[1753070269059,0.002,3753.0,3752.9,6.21460603]
[1753070269242,0.002,3753.0,3752.9,13.71243996]
[1753070269445,0.002,3753.0,3752.9,18.60523996]
[1753070269647,0.002,3753.0,3752.9,19.06403996]
[1753070277282,0.002,3753.0,3752.9,18.60523996]
[1753070278032,0.002,3753.0,3752.9,19.06403996]
[1753070280988,0.002,3753.5,3753.4,6.21425107]
[1753070281272,0.002,3753.5,3753.4,14.08558837]
[1753070281568,0.002,3753.5,3753.4,14.54438837]
[1753070290391,0.002,3753.5,3753.4,15.29968837]
[1753070290567,0.022,3753.9,3753.4,15.29968837]
[1753070290568,0.022,3753.9,3753.6,6.21410912]
[1753070290766,0.022,3753.9,3753.7,8.37584038]
[1753070291000,0.022,3753.9,3753.7,8.482]
[1753070291296,0.022,3753.9,3753.7,8.9468]
[1753070291458,0.022,3753.9,3753.7,11.14603814]
[1753070291659,0.022,3753.9,3753.7,13.77357207]
[1753070293593,1.2579,3753.8,3753.0,3.6885373]
[1753070293793,1.2579,3753.8,3753.7,2.66403814]
[1753070293978,1.2579,3753.8,3753.7,4.048]
[1753070294671,1.2579,3753.8,3753.6,5.66406007]
[1753070294853,0.7889,3753.8,3753.7,4.048]
[1753070295463,1.2579,3753.8,3753.7,4.048]
[1753070295664,1.2579,3753.8,3753.6,0.55]
[1753070295871,0.7889,3753.8,3753.7,4.048]
[1753070296415,1.2579,3753.8,3753.7,4.048]
[1753070299382,1.2579,3753.8,3753.6,0.55]
[1753070299700,0.7889,3753.8,3753.6,0.55]
[1753070300088,0.7889,3753.8,3753.7,4.047]
[1753070300295,0.7889,3753.8,3753.4,3.6885373]
[1753070300506,0.7672,3753.6,3753.5,4.047]
[1753070300812,1.2362,3753.6,3753.5,4.047]
[1753070305276,1.2362,3753.6,3753.5,6.71118009]
[1753070305482,0.469,3753.6,3753.5,6.71118009]
[1753070306897,0.002,3753.8,3753.5,6.71118009]
[1753070307100,0.002,3753.8,3753.7,3.6885373]
[1753070307415,0.002,3753.8,3753.7,7.7355373]
[1753070307797,0.471,3753.8,3753.7,7.7355373]
[1753070309402,0.471,3753.8,3753.7,4.047]
[1753070310887,0.471,3753.8,3753.7,7.7355373]
[1753070311431,0.471,3753.8,3753.7,10.39957544]
[1753070311583,0.471,3753.8,3753.7,7.7355373]
[1753070314333,0.471,3753.8,3753.7,10.39957544]
[1753070314505,0.471,3753.8,3753.7,7.7355373]
[1753070315215,0.471,3753.8,3753.7,10.39957544]
[1753070315216,0.002,3753.8,3753.7,10.39957544]
[1753070315414,0.002,3753.8,3753.7,14.72777703]
[1753070315952,0.002,3753.8,3753.7,15.19257703]
[1753070316523,0.022,3753.9,3753.8,2.66396717]
[1753070316751,0.022,3753.9,3753.8,6.63117947]
[1753070317149,0.022,3753.9,3753.8,6.76397947]
[1753070317955,0.022,3753.9,3753.8,6.29917947]
[1753070320421,0.022,3753.9,3753.8,5.48007947]
[1753070320624,0.4924,3753.9,3753.8,9.52607947]
[1753070321024,0.022,3753.9,3753.8,9.52607947]
[1753070325826,0.022,3753.9,3753.8,5.48007947]
[1753070326125,0.022,3753.9,3753.8,9.52607947]
[1753070326866,0.022,3753.9,3753.8,10.33247947]
[1753070328465,0.022,3753.9,3753.8,9.52607947]
[1753070328772,0.022,3753.9,3753.8,10.73827947]
[1753070329146,0.002,3754.2,3754.0,0.55]
[1753070329331,0.002,3754.7,3754.3,6.21361239]
[1753070329662,0.002,3754.7,3754.3,11.20241239]
[1753070330164,0.02,3754.9,3754.7,0.55]
[1753070330366,0.002,3755.1,3755.0,3.21311584]
[1753070330528,0.002,3755.1,3755.0,7.28474699]
[1753070330731,0.002,3755.1,3755.0,12.17971004]
[1753070331330,0.002,3755.1,3755.0,12.61771004]
[1753070331623,0.002,3755.1,3755.0,12.17971004]
[1753070331851,0.002,3755.1,3755.0,12.61771004]
[1753070332061,0.002,3755.4,3755.3,7.02970309]
[1753070332385,0.02,3755.9,3755.8,6.21254859]
[1753070332580,0.4904,3755.9,3755.8,13.94608589]
[1753070333829,0.814,3755.8,3755.4,0.55]
[1753070334067,0.814,3755.8,3755.5,4.045]
[1753070334068,0.4704,3755.7,3755.5,4.045]
[1753070334231,0.814,3755.6,3755.1,3.55]
[1753070334433,0.4704,3755.5,3755.3,3.0]
[1753070335070,0.4704,3755.5,3755.4,4.045]
[1753070339374,0.4704,3755.5,3755.2,0.55]
[1753070339574,0.4704,3755.5,3755.3,4.044]
[1753070339740,0.4704,3755.5,3755.3,7.044]
[1753070340355,0.4704,3755.5,3755.3,9.70689606]
[1753070341157,0.4704,3755.5,3755.4,2.66283218]
[1753070341355,0.02,3755.9,3755.8,2.66254859]
[1753070341670,0.02,3755.9,3755.8,13.94508589]
[1753070342387,0.02,3755.9,3755.8,14.07788589]
[1753070342862,0.02,3755.9,3755.8,10.03388589]
[1753070343069,0.4904,3755.9,3755.8,11.07788589]
[1753070346052,0.4904,3755.9,3755.8,8.4153373]
[1753070346255,0.4904,3755.9,3755.8,7.38934859]
[1753070346690,0.4904,3755.9,3755.8,3.34534859]
[1753070346891,0.4904,3755.9,3755.8,7.38934859]
[1753070347288,0.4904,3755.9,3755.8,11.07788589]
[1753070348871,0.4904,3755.9,3755.8,8.4153373]
[1753070349255,0.4904,3755.9,3755.8,11.07788589]
[1753070349651,0.02,3755.9,3755.8,11.07788589]
[1753070351703,0.02,3755.9,3755.8,0.6828]
[1753070351856,0.4646,3755.9,3755.8,4.7258]
[1753070352401,1.2366,3755.9,3755.8,4.043]
[1753070353313,1.2366,3755.9,3755.7,2.66261102]
[1753070353606,0.4646,3755.9,3755.8,10.39408589]
[1753070353826,0.02,3755.9,3755.8,12.29677448]
[1753070353980,0.02,3755.9,3755.8,15.29677448]
[1753070354493,0.02,3755.9,3755.8,16.08977448]
[1753070354893,0.02,3755.9,3755.8,15.29677448]
[1753070355613,0.4646,3755.9,3755.8,15.29677448]
[1753070355783,0.4646,3755.9,3755.8,11.25377448]
[1753070355983,0.4646,3755.9,3755.8,15.29677448]
[1753070356319,0.02,3755.9,3755.8,15.29677448]
[1753070357327,0.02,3755.9,3755.8,15.73717448]
[1753070357513,0.02,3755.9,3755.8,16.56747448]
[1753070359419,0.02,3755.9,3755.8,12.52447448]
[1753070359618,0.02,3755.9,3755.8,16.56747448]
[1753070359993,0.02,3755.9,3755.8,21.32747448]
[1753070361442,0.02,3755.9,3755.8,16.56747448]
[1753070362632,0.02,3755.9,3755.8,16.12707448]
[1753070363929,0.02,3755.9,3755.8,16.25987448]
[1753070365916,0.02,3755.9,3755.8,16.70027448]
[1753070367027,0.02,3755.9,3755.8,16.25987448]
[1753070367836,0.02,3755.9,3755.8,15.42957448]
[1753070368315,0.02,3755.9,3755.8,15.42857448]
[1753070368708,0.4646,3755.9,3755.8,4.14803718]
[1753070368894,0.4646,3755.9,3755.8,6.83734859]
[1753070369094,0.4646,3755.9,3755.8,7.38734859]
[1753070372015,0.4666,3755.9,3755.8,7.38734859]
[1753070372856,0.4666,3755.9,3755.8,4.7248]
[1753070373135,3.88568506,3755.9,3755.7,4.042]
[1753070373350,3.88568506,3755.9,3755.4,0.001]
[1753070373351,2.66262748,3755.7,3755.4,0.001]
[1753070373635,0.8894,3755.5,3755.4,0.001]
[1753070373998,1.334,3755.5,3755.4,0.001]
[1753070377954,0.1328,3755.5,3755.4,2.66383218]
[1753070378245,0.4666,3755.9,3755.4,2.66383218]
[1753070378246,0.5994,3755.9,3755.6,2.66269038]
[1753070378460,0.1548,3755.9,3755.7,3.6885373]
[1753070378660,0.1548,3755.9,3755.7,6.35113684]
[1753070378965,0.5994,3755.9,3755.7,6.35113684]
[1753070379150,0.5994,3755.9,3755.8,2.66254859]
[1753070379337,0.1548,3755.9,3755.8,2.66254859]
[1753070379565,0.022,3755.9,3755.8,2.66254859]
[1753070380540,0.022,3755.9,3755.8,8.02449713]
[1753070382160,0.022,3755.9,3755.8,8.57449713]
[1753070382468,0.022,3755.9,3755.8,8.70729713]
[1753070383165,0.022,3755.9,3755.8,12.14419713]
[1753070383538,0.022,3755.9,3755.8,11.70729713]
[1753070384173,0.022,3755.9,3755.8,12.90979713]
[1753070390993,0.022,3755.9,3755.8,12.47289713]
[1753070391814,0.022,3755.9,3755.8,7.11429713]
[1753070391962,0.4702,3755.9,3755.8,11.15629713]
[1753070392275,0.022,3755.9,3755.8,11.70629713]
[1753070396987,0.022,3755.9,3755.8,12.14319713]
[1753070397361,0.022,3755.9,3755.8,12.90739713]
[1753070400179,0.022,3755.9,3755.8,12.47049713]
[1753070402706,0.022,3755.9,3755.8,11.70529713]
[1753070403096,0.4702,3755.9,3755.8,11.70529713]
[1753070403265,0.4702,3755.9,3755.8,5.79534859]
[1753070403473,0.4702,3755.9,3755.8,9.83634859]
[1753070403802,0.022,3755.9,3755.8,9.83634859]
[1753070404002,0.022,3755.9,3755.8,10.38634859]
[1753070405931,0.022,3755.9,3755.8,11.14174859]
[1753070406118,0.022,3755.9,3755.8,12.93473491]
[1753070407026,0.022,3755.9,3755.8,8.13833491]
[1753070407200,0.4702,3755.9,3755.8,7.1738]
[1753070407401,0.4702,3755.9,3755.8,4.1738]
[1753070407925,0.022,3755.9,3755.8,10.38634859]
[1753070408494,0.7908,3756.3,3755.8,10.38634859]
[1753070408495,0.002,3756.7,3756.0,0.55]
[1753070408697,0.002,3756.7,3756.6,6.35051887]
[1753070408993,0.002,3756.7,3756.6,13.94151887]
[1753070412693,0.002,3756.7,3756.6,14.37711887]
[1753070413093,0.002,3756.7,3756.6,15.18281887]
[1753070418274,0.002,3757.5,3757.3,0.55]
[1753070418427,0.002,3757.5,3757.4,13.9399521]
[1753070418622,0.002,3757.5,3757.4,14.0727521]
[1753070418828,0.002,3757.5,3757.4,10.3842148]
[1753070419022,0.4448,3757.5,3757.4,4.7228]
[1753070420439,0.7576,3757.4,3756.4,3.6885373]
[1753070420674,0.4428,3757.3,3757.0,0.1328]
[1753070420970,0.4428,3757.3,3757.0,6.83448466]
[1753070421176,0.002,3757.5,3757.3,0.55]
[1753070421399,0.002,3757.5,3757.4,0.6828]
[1753070421578,0.002,3757.5,3757.4,3.3442148]
[1753070421761,0.002,3757.5,3757.4,4.71764559]
[1753070421963,0.002,3757.5,3757.4,7.74425973]
[1753070422188,0.002,3757.5,3757.4,7.71764559]
[1753070423998,0.4448,3757.5,3757.4,7.71764559]
[1753070424216,0.4448,3757.5,3757.4,6.3442148]
[1753070424660,0.4448,3757.5,3757.4,0.1328]
[1753070424866,2.66147008,3757.4,3756.9,0.1328]
[1753070425086,2.66147008,3757.4,3756.7,2.66187842]
[1753070425087,3.10429119,3757.3,3756.7,2.66187842]
[1753070425276,1.2279,3757.2,3756.8,3.0]
[1753070425479,0.4428,3757.1,3756.8,3.0]
[1753070425886,0.7851,3757.2,3756.8,5.66182586]
[1753070426073,0.4428,3757.0,3756.8,5.66182586]
[1753070426275,0.4428,3756.9,3756.8,5.66182586]
[1753070426478,0.4428,3756.9,3756.8,3.0]
[1753070428003,0.4428,3756.9,3756.7,4.1738]
[1753070428769,3.44666504,3757.2,3756.7,0.1328]
[1753070428974,0.4428,3756.8,3756.7,0.1328]
[1753070429288,0.4428,3756.8,3756.7,2.79471071]
[1753070429480,0.4428,3756.8,3756.7,0.1328]
[1753070430205,0.4428,3756.8,3756.7,2.79471071]
[1753070430501,0.4428,3756.8,3756.7,0.1328]
[1753070431205,0.4428,3756.8,3756.7,2.79471071]
[1753070431606,0.7851,3757.2,3756.8,0.55]
[1753070431818,0.7851,3757.2,3757.0,2.66162917]
[1753070432015,1.2279,3757.2,3757.0,2.66162917]
[1753070432215,0.4428,3757.1,3757.0,2.66162917]
[1753070434097,0.1328,3757.3,3756.9,3.55]
[1753070434319,0.8241,3757.5,3757.2,2.79435647]
[1753070434511,0.002,3757.5,3757.2,2.79435647]
[1753070434710,0.4448,3757.5,3757.3,2.66148564]
[1753070434882,0.4428,3757.4,3757.3,2.66148564]
[1753070435695,0.4428,3757.4,3757.2,6.834328]
[1753070435892,0.002,3757.5,3757.2,0.1328]
[1753070436128,0.4428,3757.3,3757.2,3.34435563]
[1753070437800,0.4428,3757.3,3757.2,0.1328]
[1753070438125,0.4448,3757.5,3757.4,2.6614148]
[1753070438325,0.002,3757.5,3757.4,2.6614148]
[1753070438700,0.4448,3757.5,3757.4,2.6614148]
[1753070440197,0.4448,3757.5,3757.3,2.66147726]
[1753070441048,0.4448,3757.5,3757.2,0.1328]
[1753070441049,0.4448,3757.5,3757.4,2.6614148]
[1753070442046,0.002,3757.5,3757.4,2.6614148]
[1753070442349,0.002,3757.5,3757.3,3.21146024]
[1753070442843,0.4561,3757.5,3757.4,2.6614148]
[1753070443755,0.002,3757.5,3757.4,2.6614148]
[1753070444622,0.4561,3757.5,3757.4,2.6614148]
[1753070444813,0.4561,3757.5,3757.2,0.1328]
[1753070445019,0.4561,3757.5,3757.4,2.6614148]
[1753070446876,0.4561,3757.5,3757.3,2.66144439]
[1753070447029,0.002,3757.5,3757.2,7.84752854]
[1753070447228,0.4541,3757.4,3757.2,7.84752854]
[1753070447465,0.4541,3757.3,3757.2,11.05908501]
[1753070450163,0.4561,3757.5,3757.4,2.6614148]
[1753070450726,0.4561,3757.5,3757.3,2.66146542]
[1753070451066,0.4541,3757.4,3757.3,2.66146542]
[1753070455458,0.4541,3757.4,3757.2,11.05907296]
[1753070455648,0.002,3757.5,3757.2,11.05907296]
[1753070455855,0.4541,3757.4,3757.3,2.66148564]
[1753070456588,0.4541,3757.4,3757.2,8.39752854]
[1753070456589,0.4541,3757.4,3757.2,11.05906577]
[1753070456889,0.4541,3757.3,3757.2,11.05906577]
[1753070457060,0.4541,3757.3,3757.2,0.1328]
[1753070457265,1.2639,3757.3,3757.0,4.04]
[1753070457469,0.4541,3757.2,3757.0,4.04]
[1753070457800,0.8098,3757.3,3757.0,4.04]
[1753070457950,0.4541,3757.1,3757.0,2.66169816]
[1753070458709,0.8098,3757.3,3757.2,2.66155647]
[1753070459002,0.1348,3757.5,3757.2,2.66155647]
[1753070459198,0.002,3757.5,3757.4,2.6614148]
[1753070459567,0.002,3757.5,3757.4,6.33614334]
[1753070459963,0.002,3757.5,3757.4,11.20318746]
[1753070460302,0.02,3757.9,3757.8,3.21113151]
[1753070460497,0.02,3757.9,3757.8,11.06303151]
[1753070460698,0.02,3757.9,3757.8,15.33036005]
[1753070461204,0.1328,3758.7,3758.2,2.66084827]
[1753070461377,0.002,3759.1,3758.2,15.75746771]
[1753070461581,0.002,3759.1,3758.2,16.21726771]
[1753070462168,0.4541,3758.8,3758.2,11.71746771]
[1753070462371,0.002,3759.1,3758.2,14.94456771]
[1753070462590,0.4541,3758.6,3758.2,14.94456771]
[1753070462997,0.4561,3758.3,3758.2,0.1328]
[1753070463196,0.4561,3758.3,3758.0,3.6828]
[1753070463508,0.4561,3758.3,3758.1,2.66086613]
[1753070463704,0.4561,3758.3,3758.1,6.69986613]
[1753070463885,0.4561,3758.3,3758.1,4.039]
[1753070464395,0.4541,3758.2,3758.1,4.039]
[1753070464702,1.2097,3758.2,3758.1,4.039]
[1753070465485,0.4541,3758.2,3758.1,6.69991908]
[1753070465694,0.4541,3758.2,3758.1,2.66091908]
[1753070465902,0.4541,3758.2,3758.0,10.38277024]
[1753070466523,0.002,3758.3,3758.0,0.6828]
[1753070466728,0.4541,3758.1,3758.0,0.6828]
[1753070467220,0.4541,3758.1,3757.8,4.039]
[1753070467422,0.7556,3758.0,3757.8,4.039]
[1753070467818,0.4541,3757.9,3757.8,7.039]
[1753070467991,0.4541,3757.9,3757.8,3.0]
[1753070471427,0.4541,3757.9,3756.9,5.55]
[1753070471612,0.1328,3757.8,3757.5,6.33604111]
[1753070471819,0.7556,3758.0,3757.5,6.33604111]
[1753070471820,0.7556,3758.0,3757.7,2.66120233]
[1753070472123,0.4463,3758.3,3757.9,6.33576533]
[1753070472327,0.5791,3758.3,3757.9,6.33576533]
[1753070472504,0.5791,3758.3,3758.2,2.66084827]
[1753070472707,0.1348,3758.3,3758.2,2.66084827]
[1753070473716,0.1348,3758.3,3757.9,10.37477864]
[1753070473914,0.002,3758.3,3758.0,2.66098988]
[1753070474102,0.002,3758.3,3758.2,2.66084827]
[1753070476427,0.002,3758.3,3758.2,7.00705675]
[1753070476594,0.002,3758.3,3758.2,7.57734827]
[1753070480221,0.002,3758.3,3758.2,6.34364827]
[1753070480404,0.002,3758.3,3758.2,12.70898073]
[1753070481017,0.002,3758.3,3758.2,9.45678073]
[1753070481228,0.002,3758.3,3758.2,18.25478073]
[1753070482960,1e-08,3758.3,3758.2,18.25478073]
[1753070483343,0.02,3758.9,3758.8,4.01862353]
[1753070483531,0.02,3758.9,3758.8,20.02601442]
[1753070483738,0.02,3758.9,3758.8,15.73011442]
[1753070483933,1e-08,3758.9,3758.8,15.73011442]
[1753070484257,0.4443,3760.4,3759.8,6.20971594]
[1753070484485,0.4443,3760.3,3759.8,13.92244448]
[1753070484659,0.4443,3760.3,3759.8,14.05524448]
[1753070484856,0.4443,3760.3,3759.8,15.72675343]
[1753070485062,0.78,3760.5,3759.8,15.72675343]
[1753070485252,0.45036601,3759.9,3759.8,14.05524448]
[1753070485561,0.45036601,3759.9,3759.8,7.35752854]
[1753070485765,0.45236601,3759.9,3759.8,6.83151594]
[1753070487054,1.23476601,3759.9,3759.8,0.1328]
[1753070487259,1.23476601,3759.9,3759.8,4.1708]
[1753070487666,1.23476601,3759.9,3759.8,4.038]
[1753070488058,0.00806601,3759.9,3759.8,10.37244448]
[1753070488933,0.00806601,3759.9,3759.8,10.92244448]
[1753070489189,0.00806601,3759.9,3759.8,11.05524448]
[1753070489973,0.00806601,3759.9,3759.8,15.72675207]
[1753070490896,0.8081,3761.9,3759.9,7.166]
[1753070491091,0.8081,3761.9,3761.2,2.65867709]
[1753070491275,0.4443,3761.7,3760.9,0.7969]
[1753070491591,0.4443,3761.7,3761.2,0.55]
[1753070491748,0.4443,3761.6,3761.3,4.075]
[1753070491949,0.8081,3761.9,3761.6,2.6583936]
[1753070492254,0.8081,3761.9,3761.8,2.65830187]
[1753070492448,0.02,3761.9,3761.8,2.65830187]
[1753070493271,0.4643,3761.9,3761.8,2.65830187]
[1753070494053,0.4643,3761.9,3761.7,6.73435088]
[1753070494260,0.4443,3761.8,3761.7,6.73435088]
[1753070494485,0.02,3761.9,3761.8,6.20830187]
[1753070494756,0.02,3761.9,3761.8,7.076]
[1753070494956,0.02,3761.9,3761.8,7.626]
[1753070495198,0.02,3761.9,3761.8,7.076]
[1753070495404,0.4643,3761.9,3761.8,7.076]
[1753070496279,0.4643,3761.9,3761.8,3.0]
[1753070496479,0.4643,3761.9,3761.8,7.076]
[1753070497304,0.4643,3761.9,3761.8,9.73430187]
[1753070497814,0.4643,3761.9,3761.8,7.076]
[1753070499307,0.4643,3761.9,3761.8,9.73430187]
[1753070499522,0.4643,3761.9,3761.8,7.076]
[1753070499881,0.4643,3761.9,3761.8,7.073]
[1753070500816,0.4643,3761.9,3761.8,3.0]
[1753070501210,0.4643,3761.9,3761.8,7.071]
[1753070501624,0.4643,3761.9,3760.9,0.7844]
[1753070501625,0.74069735,3761.9,3760.9,0.7844]
[1753070501784,2.65863313,3761.4,3761.0,0.1328]
[1753070501984,2.65863313,3761.4,3761.0,3.1328]
[1753070502226,0.4732,3761.3,3761.0,3.1328]
[1753070502397,2.65878666,3761.2,3760.9,4.071]
[1753070502602,1.2897,3761.1,3760.9,4.071]
[1753070502792,0.4732,3761.0,3760.9,4.071]
[1753070503122,0.4732,3761.0,3760.7,9.86286567]
[1753070503331,0.4732,3761.0,3760.7,7.2038]
[1753070503729,0.4732,3760.9,3760.7,0.1328]
[1753070503891,0.4732,3760.9,3760.7,4.071]
[1753070504097,0.4732,3760.8,3760.7,4.071]
[1753070504520,0.4732,3760.8,3760.7,3.0]
[1753070504720,0.4732,3760.8,3760.7,4.071]
[1753070507435,0.9493,3761.1,3760.7,4.071]
[1753070507936,0.4732,3761.0,3760.7,4.071]
[1753070508113,3.60810248,3761.1,3760.7,4.071]
[1753070508318,0.4732,3761.0,3760.7,4.071]
[1753070508532,3.60810248,3761.1,3760.7,4.071]
[1753070508703,0.4732,3760.9,3760.7,4.071]
[1753070510335,0.9493,3761.1,3760.7,4.071]
[1753070510336,0.4732,3760.8,3760.7,4.071]
[1753070511636,0.4732,3760.8,3760.7,4.068]
[1753070512738,3.13220872,3760.8,3760.7,4.068]
[1753070513511,0.4732,3760.8,3760.7,4.068]
[1753070514214,3.26506824,3760.8,3760.6,4.065]
[1753070514565,3.13227942,3760.7,3760.6,4.065]
[1753070515143,3.13230103,3760.7,3760.4,4.065]
[1753070515340,2.65910103,3760.7,3760.4,4.065]
[1753070515544,0.4732,3760.6,3760.4,4.065]
[1753070516169,2.65908152,3760.7,3760.4,4.065]
[1753070516347,3.47530009,3761.1,3760.6,5.4348328]
[1753070516661,0.9493,3761.1,3760.6,5.4348328]
[1753070516864,0.4732,3761.0,3760.7,4.065]
[1753070517064,0.4732,3760.9,3760.7,4.065]
[1753070517370,0.4732,3760.8,3760.7,4.065]
[1753070517868,0.4732,3760.8,3760.5,3.801232]
[1753070518164,0.4732,3760.7,3760.6,4.065]
[1753070518365,0.4732,3760.7,3760.5,3.801232]
[1753070518575,0.4732,3760.7,3760.6,4.065]
[1753070518946,0.4732,3761.0,3760.6,4.065]
[1753070519134,0.4732,3761.0,3760.7,2.65906824]
[1753070519338,0.1328,3761.1,3760.9,3.668432]